bitfinex/quotes_SOLUSD_20240725
["timestamp","ask_amount","ask_price","bid_price","bid_amount"]
[1721929820214,27.3508604,170.06,169.94,15.2971]
[1721929820415,21.4705604,170.06,169.94,15.2971]
[1721929821499,26.62,170.07,169.95,8.24500277]
[1721929821704,2.3940591,170.09,169.96,46.17634556]
[1721929821905,43.528904,170.1,169.97,52.06768354]
[1721929822114,26.62,170.1,169.99,6.258]
[1721929822326,26.62,170.1,170.0,45.0]
[1721929822525,26.62,170.1,170.01,1.17608807]
[1721929822743,26.62,170.13,170.03,16.153]
[1721929822910,26.62,170.13,170.04,1.17591284]
[1721929823240,1.46992971,170.12,170.04,45.0]
[1721929823408,26.62,170.1,170.0,45.0]
[1721929823741,28.09030467,170.1,170.0,45.0]
[1721929824603,20.0,170.09,170.0,45.0]
[1721929825025,1.47038543,170.08,169.99,22.411]
[1721929825331,28.09051291,170.07,169.95,21.4101]
[1721929825829,20.0,170.06,169.95,21.4101]
[1721929826008,1.47063021,170.05,169.95,21.4101]
[1721929826198,1.47063002,170.04,169.95,21.4101]
[1721929826399,1.47063002,170.04,169.92,23.69785694]
[1721929826609,28.09063002,170.04,169.92,16.5578]
[1721929826831,20.0,170.03,169.92,16.5578]
[1721929827015,1.47087638,170.02,169.92,16.5578]
[1721929827516,1.47097477,170.01,169.91,6.2563]
[1721929827915,21.47107017,170.03,169.91,6.2563]
[1721929828627,27.35247017,170.03,169.91,6.2563]
[1721929828928,27.35247017,170.03,169.92,45.0]
[1721929829135,20.0,170.03,169.93,1.17677211]
[1721929829308,48.09096514,170.05,169.92,45.0]
[1721929829498,1.47087898,170.04,169.92,45.0]
[1721929829698,5.8816,170.03,169.92,45.0]
[1721929829904,20.0,170.02,169.93,1.1767485]
[1721929830128,1.47087898,170.04,169.93,1.1767485]
[1721929830433,7.35187898,170.04,169.93,1.1767485]
[1721929830727,20.0,170.03,169.92,45.0]
[1721929830908,20.0,170.03,169.93,1.17673479]
[1721929831110,38.3847,170.05,169.92,46.17661795]
[1721929831111,26.62,170.05,169.92,46.17661795]
[1721929831331,20.02752783,170.06,169.93,1.17652048]
[1721929831852,1.47064892,170.05,169.93,1.17652048]
[1721929832026,1.47050352,170.04,169.93,1.17652048]
[1721929832525,7.35150352,170.04,169.93,1.1764282]
[1721929832733,26.62,170.02,169.92,45.0]
[1721929832931,26.62,170.02,169.91,45.0]
[1721929833139,20.0,170.01,169.93,1.17678809]
[1721929833630,20.0,170.01,169.91,45.0]
[1721929833837,21.47083112,170.01,169.91,45.0]
[1721929834034,1.47083112,170.01,169.91,45.0]
[1721929834257,26.62,170.05,169.91,45.0]
[1721929834258,21.47065828,170.04,169.91,45.0]
[1721929835736,26.62,170.05,169.92,1.17656627]
[1721929835936,26.62,170.05,169.91,46.17642688]
[1721929836157,1.47053361,170.04,169.91,46.17642688]
[1721929836448,1.47054286,170.04,169.91,46.17642688]
[1721929836849,26.62,170.05,169.91,46.17642688]
[1721929837229,1.47063455,170.04,169.91,46.17642688]
[1721929838553,26.62,170.05,169.92,1.17659085]
[1721929838554,28.09073857,170.05,169.92,1.17659085]
[1721929838856,28.09073478,170.05,169.91,46.17658782]
[1721929839025,21.47073911,170.04,169.91,46.17658782]
[1721929839455,21.47073911,170.04,169.91,45.0]
[1721929840423,26.62,170.02,169.91,45.0]
[1721929840659,1.47103331,170.01,169.91,45.0]
[1721929840861,21.47103331,170.01,169.91,45.0]
[1721929841747,26.62,170.02,169.91,45.0]
[1721929841941,28.09082877,170.05,169.92,1.17680962]
[1721929842951,1.47073504,170.04,169.91,46.17658803]
[1721929843255,21.47073504,170.04,169.91,45.0]
[1721929843634,26.62,170.02,169.91,45.0]
[1721929843833,1.47090397,170.01,169.91,45.0]
[1721929845932,1.47090397,170.01,169.9,6.92537487]
[1721929846134,21.47090397,170.01,169.9,6.92537487]
[1721929846351,21.47090397,170.01,169.9,0.8073535]
[1721929846352,21.47110093,170.01,169.9,0.8073535]
[1721929847767,26.62,169.99,169.9,0.8073535]
[1721929847974,21.47125369,169.98,169.9,0.8073535]
[1721929848842,37.32925369,169.98,169.9,0.8073535]
[1721929849644,37.32925369,169.98,169.91,5.8852]
[1721929849844,37.32925369,169.98,169.9,0.8073535]
[1721929850046,37.32925369,169.98,169.92,5.8848]
[1721929851764,35.858,169.98,169.9,0.8073535]
[1721929852260,37.32927642,169.98,169.91,5.8851]
[1721929852469,37.32927642,169.98,169.92,5.8851]
[1721929853655,35.858,169.98,169.92,5.8851]
[1721929854276,35.858,169.98,169.93,5.8846]
[1721929855158,35.858,169.98,169.94,5.8844]
[1721929855351,15.858,169.98,169.94,5.8844]
[1721929855673,42.7716,170.02,169.9,0.8073535]
[1721929855860,42.7716,170.02,169.97,5.8833]
[1721929855861,21.47095901,170.01,169.97,5.8833]
[1721929856059,21.47095901,170.01,169.9,0.8073535]
[1721929856060,21.47095901,170.01,169.96,5.8837]
[1721929856459,26.62,170.05,169.92,21.4594]
[1721929856777,22.2886,170.07,170.03,5.8812]
[1721929856974,22.2886,170.07,169.93,1.17643183]
[1721929856975,22.2886,170.07,169.93,46.17643183]
[1721929857694,15.934,170.07,169.94,7.14005694]
[1721929857977,380.5,170.1,169.95,46.17613699]
[1721929858176,42.625,170.11,169.96,1.17609583]
[1721929858851,1.47012675,170.1,169.96,1.17609583]
[1721929859066,21.47012675,170.1,169.96,1.17609583]
[1721929859265,26.62,170.08,169.95,45.0]
[1721929859553,1.47042057,170.07,169.92,21.4594]
[1721929859769,26.62,170.05,169.92,21.4594]
[1721929859969,1.47078481,170.04,169.92,21.4594]
[1721929860470,20.0,170.04,169.92,21.4594]
[1721929860970,28.09071057,170.05,169.93,1.17656514]
[1721929860971,26.62,170.05,169.93,1.17656514]
[1721929861155,26.62,170.05,169.93,53.09151654]
[1721929861359,1.47063323,170.04,169.93,51.9149514]
[1721929861572,26.62,170.05,169.93,51.9149514]
[1721929861965,1.47070933,170.04,169.93,51.9149514]
[1721929862273,22.1715,170.03,169.92,6.029]
[1721929862472,21.47091621,170.02,169.92,6.029]
[1721929862670,1.47091329,170.01,169.92,6.029]
[1721929862862,1.47091329,170.01,169.9,0.8073535]
[1721929863577,22.1715,170.03,169.9,1.98416852]
[1721929863770,22.1715,170.03,169.91,7.14005694]
[1721929864280,1.47081317,170.02,169.91,7.14005694]
[1721929864669,1.47081317,170.01,169.91,7.14005694]
[1721929864973,22.1715,170.03,169.92,45.0]
[1721929865193,1.4708112,170.04,169.92,45.0]
[1721929865371,20.0,170.04,169.92,45.0]
[1721929865876,15.876,170.07,169.93,1.17658482]
[1721929866078,15.876,170.07,169.93,8.31664176]
[1721929866384,15.876,170.07,169.94,45.0]
[1721929866566,15.876,170.07,169.95,1.17636431]
[1721929866761,15.876,170.07,169.96,1.17636046]
[1721929866970,26.62,170.11,169.97,22.4372]
[1721929867160,26.62,170.11,169.98,46.17619149]
[1721929867368,26.62,170.11,169.99,1.17620553]
[1721929867576,1.4701838,170.1,169.98,45.0]
[1721929869588,26.62,170.11,169.99,1.17614537]
[1721929870279,28.09018171,170.14,169.99,1.17614537]
[1721929870482,26.62,170.14,169.99,47.79614537]
[1721929870788,24.41552642,170.16,170.01,6.379]
[1721929870789,16.3123,170.16,170.01,6.379]
[1721929870994,28.08957625,170.17,170.03,16.41]
[1721929871167,28.08957625,170.17,170.04,45.0]
[1721929871589,28.08957625,170.17,170.04,46.17583247]
[1721929871785,26.62,170.17,170.05,1.17574611]
[1721929871989,44.40183185,170.2,170.05,1.17574611]
[1721929872701,44.40183185,170.2,170.04,46.17564554]
[1721929872887,44.40183185,170.2,170.05,1.17564554]
[1721929873798,20.0,170.19,170.05,1.17564554]
[1721929874678,637.1,170.21,170.06,6.3182]
[1721929874882,1.46929298,170.2,170.07,46.17543438]
[1721929875088,1.46929298,170.2,170.07,45.0]
[1721929875688,26.62,170.17,170.06,6.3182]
[1721929875994,1.46977269,170.16,170.06,6.3182]
[1721929876469,26.62,170.17,170.06,6.3182]
[1721929876673,1.46972907,170.16,170.06,6.3182]
[1721929876976,26.62,170.17,170.07,45.0]
[1721929878098,1.46953168,170.16,170.07,45.0]
[1721929878481,26.62,170.17,170.07,45.0]
[1721929879178,1.46958785,170.16,170.07,45.0]
[1721929879492,26.62,170.17,170.07,45.0]
[1721929879869,1.46959181,170.16,170.07,45.0]
[1721929880076,26.62,170.17,170.07,45.0]
[1721929880704,26.62,170.21,170.08,1.17540383]
[1721929880990,26.62,170.21,170.07,46.17540383]
[1721929881179,1.46934237,170.2,170.08,1.1754739]
[1721929881369,1.46934237,170.2,170.07,46.1754739]
[1721929881776,21.46934237,170.2,170.07,45.0]
[1721929882788,26.62,170.18,170.07,45.0]
[1721929882983,28.08959111,170.18,170.07,45.0]
[1721929884401,1.46958052,170.17,170.07,45.0]
[1721929885094,28.08946835,170.18,170.07,45.0]
[1721929885309,1.46958971,170.17,170.07,45.0]
[1721929885774,26.62,170.15,170.06,6.3182]
[1721929885979,1.46994393,170.14,170.06,6.3182]
[1721929886279,21.46994393,170.14,170.06,6.3182]
[1721929886478,21.46994393,170.14,170.03,16.41]
[1721929887506,1.46994393,170.14,170.04,45.0]
[1721929887687,21.46994393,170.14,170.04,45.0]
[1721929888201,26.62,170.18,170.05,1.17596503]
[1721929888696,20.0,170.17,170.05,1.17596503]
[1721929889013,21.46960647,170.17,170.04,45.0]
[1721929889804,26.62,170.18,170.05,1.17568563]
[1721929890108,1.46941248,170.2,170.05,1.17568563]
[1721929890295,1.4693563,170.19,170.06,6.131]
[1721929890603,42.2864,170.21,170.07,46.17547702]
[1721929891301,26.62,170.21,170.08,16.6037]
[1721929891511,26.62,170.24,170.09,46.17527025]
[1721929892108,26.62,170.24,170.1,6.131]
[1721929892290,26.62,170.24,170.11,46.17524312]
[1721929892698,1.46896894,170.23,170.11,45.0]
[1721929893988,26.62,170.24,170.11,46.17521852]
[1721929894284,26.62,170.27,170.13,6.1113]
[1721929894486,26.62,170.27,170.14,46.17492969]
[1721929894799,26.62,170.27,170.15,1.17493841]
[1721929895790,36.38888732,170.3,170.15,1.17493841]
[1721929895994,1.46851118,170.29,170.16,16.1892]
[1721929896292,1.46851118,170.29,170.17,45.0]
[1721929897310,26.62,170.27,170.17,45.0]
[1721929897597,28.08890586,170.27,170.17,45.0]
[1721929897815,1.46888596,170.29,170.17,45.0]
[1721929897989,21.46864792,170.3,170.17,46.17491833]
[1721929898194,26.62,170.32,170.18,1.1749048]
[1721929898422,28.08845829,170.32,170.19,6.173]
[1721929898615,28.08848616,170.32,170.2,46.17478893]
[1721929898797,26.62,170.32,170.21,1.17480078]
[1721929898994,28.08836136,170.32,170.21,1.17480078]
[1721929899192,26.62,170.32,170.21,1.17480078]
[1721929899401,28.08840861,170.32,170.2,46.17472343]
[1721929899605,20.0,170.31,170.2,46.17472343]
[1721929899794,21.4683312,170.31,170.2,45.0]
[1721929900305,26.62,170.29,170.2,45.0]
[1721929900812,28.08857206,170.29,170.2,45.0]
[1721929901409,26.62,170.29,170.2,45.0]
[1721929901596,28.08856794,170.29,170.2,45.0]
[1721929901801,26.62,170.29,170.2,45.0]
[1721929902004,20.0,170.31,170.2,46.17473455]
[1721929902622,20.0,170.31,170.21,1.174743]
[1721929903146,26.62,170.29,170.2,45.0]
[1721929903354,1.46852848,170.28,170.2,45.0]
[1721929903723,26.62,170.29,170.2,45.0]
[1721929903952,1.4683886,170.28,170.2,45.0]
[1721929905626,28.08836139,170.32,170.2,45.0]
[1721929906354,26.62,170.32,170.21,1.17466443]
[1721929906552,26.62,170.32,170.22,15.0707]
[1721929906764,30.4443508,170.35,170.23,46.17454256]
[1721929906938,1.46826244,170.35,170.24,6.2669]
[1721929907127,271.7167,170.42,170.27,6.2669]
[1721929907325,26.62,170.43,170.28,56.30681898]
[1721929907526,15.1167,170.47,170.28,56.30681898]
[1721929907527,28.08738226,170.46,170.29,41.9066]
[1721929907725,26.62,170.46,170.3,46.17370864]
[1721929907949,26.62,170.46,170.31,6.383]
[1721929908132,26.62,170.46,170.32,46.17371004]
[1721929908331,26.62,170.46,170.33,1.17371004]
[1721929909128,26.62,170.46,170.32,45.0]
[1721929909129,1.46730485,170.45,170.32,45.0]
[1721929909331,1.46730485,170.45,170.32,46.17386881]
[1721929909543,1.46730485,170.45,170.32,45.0]
[1721929909960,26.62,170.43,170.32,45.0]
[1721929910156,1.46755888,170.42,170.32,45.0]
[1721929910629,26.62,170.4,170.31,6.383]
[1721929910831,1.46774528,170.39,170.31,6.383]
[1721929911857,26.62,170.37,170.27,6.3461]
[1721929912150,28.08805926,170.37,170.27,6.3461]
[1721929912735,26.62,170.34,170.27,6.3461]
[1721929912943,21.46822378,170.33,170.23,6.6565]
[1721929913150,26.62,170.31,170.23,6.6565]
[1721929913335,1.46852827,170.3,170.23,6.6565]
[1721929913535,1.468525,170.29,170.23,6.6565]
[1721929914155,28.08849091,170.31,170.23,6.6565]
[1721929914348,1.46849162,170.29,170.23,6.6565]
[1721929914855,1.46849162,170.29,170.19,6.0405]
[1721929915152,27.34089162,170.29,170.19,6.0405]
[1721929915566,21.46849162,170.29,170.19,6.0405]
[1721929915852,21.46885331,170.29,170.19,6.0405]
[1721929916047,1.46850095,170.34,170.19,6.0405]
[1721929916249,21.46850095,170.34,170.2,45.0]
[1721929917137,27.33910095,170.34,170.2,45.0]
[1721929917333,21.46850095,170.34,170.2,45.0]
[1721929918149,380.5,170.35,170.21,1.1746919]
[1721929919155,1.46814034,170.34,170.21,1.1746919]
[1721929919346,1.46814034,170.34,170.22,16.2499]
[1721929919551,380.5,170.35,170.23,45.0]
[1721929920168,380.5,170.35,170.24,1.17452083]
[1721929920456,49.0867,170.37,170.23,45.0]
[1721929920662,21.46808629,170.36,170.23,46.17452669]
[1721929920868,20.0,170.36,170.24,1.17438619]
[1721929921160,20.0,170.36,170.25,6.4053]
[1721929921342,20.0,170.38,170.26,46.17430266]
[1721929921535,20.0,170.38,170.27,1.17430266]
[1721929921754,256.6,170.39,170.27,1.17430248]
[1721929922557,256.6,170.39,170.28,16.6514]
[1721929922765,256.6,170.39,170.29,45.0]
[1721929923056,256.6,170.39,170.3,1.17404666]
[1721929923263,256.6,170.39,170.29,45.0]
[1721929923264,380.5,170.42,170.29,46.17398783]
[1721929923453,1.46754257,170.41,170.29,45.0]
[1721929923946,1.46754257,170.41,170.28,16.6514]
[1721929924766,21.46754257,170.41,170.28,16.6514]
[1721929924969,21.46754257,170.41,170.28,17.82558373]
[1721929925275,2.41356099,170.45,170.29,6.2672]
[1721929925485,1.46731946,170.45,170.3,1.17385557]
[1721929925683,1.46731946,170.45,170.3,1.17387524]
[1721929925855,1.46731946,170.45,170.29,52.44111805]
[1721929926181,7.33421946,170.45,170.29,51.2672]
[1721929926373,27.33421946,170.45,170.29,51.2672]
[1721929926571,21.46731946,170.45,170.3,1.17406073]
[1721929927079,1.46723663,170.45,170.33,6.0534]
[1721929927388,380.5,170.49,170.34,46.17347762]
[1721929927562,0.8073535,170.5,170.35,6.0534]
[1721929927767,0.8073535,170.5,170.37,15.9165]
[1721929927961,0.8073535,170.5,170.38,66.17317672]
[1721929928162,0.8073535,170.5,170.39,6.2082]
[1721929928362,0.8073535,170.5,170.4,46.17302446]
[1721929928565,0.8073535,170.5,170.41,20.0]
[1721929928778,0.8073535,170.5,170.42,46.17287038]
[1721929928985,0.8073535,170.5,170.43,1.1728605]
[1721929929956,0.8073535,170.5,170.42,45.0]
[1721929930783,0.8073535,170.5,170.39,6.2082]
[1721929931163,1.46682911,170.49,170.39,6.2082]
[1721929931357,1.46675537,170.48,170.39,6.2082]
[1721929931984,2.27424817,170.5,170.39,6.2082]
[1721929932685,8.13964817,170.5,170.39,6.2082]
[1721929932883,20.0,170.49,170.39,6.2082]
[1721929933073,1.46701112,170.48,170.39,6.2082]
[1721929933274,1.46701112,170.48,170.33,19.92559361]
[1721929933275,7.33281112,170.48,170.34,6.3649]
[1721929933461,1.46701112,170.48,170.34,6.3649]
[1721929933875,46.46701112,170.48,170.34,6.3649]
[1721929934086,20.0,170.47,170.34,6.3649]
[1721929934268,1.46726055,170.46,170.34,6.3649]
[1721929934589,0.8073535,170.5,170.41,33.59]
[1721929935093,0.8073535,170.5,170.42,1.17323303]
[1721929935383,0.8073535,170.5,170.43,1.17285972]
[1721929935779,0.8073535,170.5,170.43,21.17285972]
[1721929936085,0.8073535,170.5,170.44,45.0]
[1721929936396,0.8073535,170.5,170.45,21.17280431]
[1721929936567,0.8073535,170.5,170.46,46.1728052]
[1721929936893,0.8073535,170.68,170.53,20.0]
[1721929937063,0.8073535,170.68,170.55,33.59]
[1721929937263,0.8073535,170.68,170.56,21.17197381]
[1721929937482,0.8073535,170.68,170.56,66.17197381]
[1721929937692,0.8073535,170.68,170.56,65.0]
[1721929938183,0.8073535,170.68,170.56,45.0]
[1721929938765,20.8073535,170.68,170.56,45.0]
[1721929939096,20.8073535,170.68,170.49,1.17245693]
[1721929939265,45.0,170.67,170.49,66.17245693]
[1721929939465,20.0,170.66,170.49,66.17245693]
[1721929940172,0.8073535,170.68,170.5,20.0]
[1721929940388,0.8073535,170.68,170.52,20.0]
[1721929940711,0.8073535,170.68,170.53,66.17197764]
[1721929940994,0.8073535,170.68,170.54,45.0]
[1721929941161,0.8073535,170.68,170.55,21.17216031]
[1721929941364,414.09,170.81,170.62,20.0]
[1721929941566,0.8073535,170.85,170.63,66.17131781]
[1721929941785,0.8073535,170.85,170.66,33.59]
[1721929941968,0.8073535,170.85,170.67,21.17124904]
[1721929942170,0.8073535,170.85,170.68,46.17124949]
[1721929942563,0.8073535,170.85,170.69,20.0]
[1721929942768,0.8073535,170.85,170.71,6.5547]
[1721929943085,0.8073535,170.85,170.72,46.17120481]
[1721929943691,0.8073535,170.85,170.72,45.0]
[1721929943872,0.8073535,170.85,170.73,1.17131598]
[1721929944078,0.8073535,170.85,170.73,1.17098427]
[1721929944594,0.8073535,170.85,170.74,1.17098214]
[1721929944772,0.8073535,170.85,170.72,45.0]
[1721929944976,0.8073535,170.85,170.71,7.72602538]
[1721929945294,6.6606535,170.85,170.71,7.72602538]
[1721929945591,0.8073535,170.85,170.73,1.17132538]
[1721929945788,0.8073535,170.85,170.71,6.5547]
[1721929946003,65.8073535,170.85,170.64,6.4733]
[1721929946301,71.6607535,170.85,170.65,20.0]
[1721929946509,71.6607535,170.85,170.64,6.4733]
[1721929946792,40.79,170.82,170.64,6.4733]
[1721929946974,5.8557,170.78,170.64,6.4733]
[1721929947176,20.0,170.77,170.57,6.4733]
[1721929947385,45.0,170.76,170.57,6.4733]
[1721929947575,20.0,170.75,170.57,6.4733]
[1721929947990,20.0,170.75,170.59,12.63340168]
[1721929948588,20.0,170.75,170.57,7.64520365]
[1721929948919,5.8579,170.71,170.57,6.4733]
[1721929949201,25.8582,170.7,170.57,6.4733]
[1721929949389,25.8582,170.7,170.53,1.17201039]
[1721929949390,25.8582,170.7,170.53,1.17229407]
[1721929949805,5.8586,170.69,170.53,1.17229407]
[1721929950000,20.0,170.68,170.53,1.17229407]
[1721929950581,5.8585,170.69,170.53,1.17229407]
[1721929950783,25.8589,170.68,170.51,1.17225676]
[1721929951001,20.0,170.68,170.5,7.83748551]
[1721929951393,20.0,170.71,170.5,7.83748551]
[1721929951910,50.8583,170.7,170.5,7.83748551]
[1721929952107,20.0,170.69,170.5,7.83748551]
[1721929952410,85.79,170.68,170.45,1.17248065]
[1721929952626,20.0,170.67,170.46,1.17270889]
[1721929952913,5.8599,170.65,170.46,1.17270889]
[1721929953087,20.0,170.64,170.46,1.17270889]
[1721929953784,20.0,170.65,170.46,21.17270889]
[1721929954086,271.2421,170.74,170.48,20.0]
[1721929954287,271.2421,170.74,170.49,66.17230559]
[1721929954809,46.6475,170.72,170.49,66.17230559]
[1721929955189,5.8578,170.71,170.49,66.17230559]
[1721929955392,5.8593,170.67,170.49,66.17230559]
[1721929955601,5.8592,170.67,170.49,66.17230559]
[1721929955802,25.8596,170.66,170.49,66.17230559]
[1721929956008,25.8596,170.66,170.5,1.17252452]
[1721929956189,20.0,170.66,170.5,1.17252452]
[1721929956396,20.0,170.67,170.5,1.17252452]
[1721929956596,20.0,170.68,170.5,1.17252452]
[1721929957797,45.0,170.67,170.5,1.17252452]
[1721929958010,20.0,170.66,170.5,1.17252452]
[1721929958191,20.0,170.71,170.5,1.17252452]
[1721929958389,50.8582,170.7,170.5,1.17252452]
[1721929958584,20.0,170.71,170.5,1.17252452]
[1721929958585,20.0,170.69,170.5,1.17252452]
[1721929958801,20.0,170.71,170.5,1.17252452]
[1721929959311,55.4338,170.73,170.5,1.17252452]
[1721929959312,5.8596,170.66,170.5,1.17252452]
[1721929959482,20.0,170.65,170.5,1.17252452]
[1721929959686,5.8589,170.68,170.5,1.17252452]
[1721929959885,25.8592,170.67,170.5,1.17252452]
[1721929960107,20.0,170.72,170.5,1.17252452]
[1721929960287,5.8586,170.69,170.5,1.17252452]
[1721929960494,20.0,170.68,170.5,1.17252452]
[1721929961193,20.0,170.69,170.5,1.17252452]
[1721929961715,40.79,170.73,170.51,26.5446]
[1721929961912,40.79,170.73,170.52,66.1720788]
[1721929962616,40.79,170.73,170.54,15.1774]
[1721929962821,256.6,170.74,170.55,66.17197903]
[1721929963199,5.8579,170.71,170.55,66.17197903]
[1721929963402,5.8572,170.73,170.55,66.17197903]
[1721929963715,256.6,170.74,170.55,66.17197903]
[1721929964324,290.03,170.74,170.55,86.17197903]
[1721929965011,256.6,170.74,170.57,20.0]
[1721929965225,256.6,170.74,170.58,66.17167985]
[1721929965402,380.5,170.75,170.58,66.17167985]
[1721929965602,33.43,170.78,170.58,66.17167985]
[1721929966495,54.7324,170.82,170.6,20.0]
[1721929966701,54.7324,170.82,170.61,66.17145468]
[1721929966896,33.43,170.82,170.63,16.5908]
[1721929967213,5.8545,170.81,170.64,66.17127393]
[1721929967412,5.8545,170.81,170.65,1.17139454]
[1721929967620,5.8551,170.79,170.65,1.17139454]
[1721929967910,33.43,170.82,170.65,1.17139454]
[1721929968113,33.43,170.78,170.63,16.5908]
[1721929968317,20.0,170.77,170.63,16.5908]
[1721929968506,25.8558,170.77,170.63,16.5908]
[1721929968705,20.0,170.77,170.63,16.5908]
[1721929968900,45.0,170.76,170.63,16.5908]
[1721929969303,20.0,170.75,170.63,16.5908]
[1721929969712,20.0,170.75,170.64,45.0]
[1721929969915,20.0,170.77,170.63,16.5908]
[1721929970099,20.0,170.77,170.64,45.0]
[1721929970294,25.8558,170.77,170.64,45.0]
[1721929970499,20.0,170.77,170.63,16.5908]
[1721929970703,33.43,170.74,170.63,16.5908]
[1721929970908,33.43,170.74,170.62,6.3463]
[1721929970909,400.5,170.77,170.62,6.3463]
[1721929971101,33.43,170.75,170.62,6.3463]
[1721929971415,20.0,170.74,170.63,1.17166707]
[1721929971609,20.0,170.77,170.63,1.17166707]
[1721929972002,33.43,170.78,170.63,1.17166707]
[1721929972324,20.0,170.77,170.63,46.17166707]
[1721929973222,20.0,170.77,170.63,45.0]
[1721929973530,33.43,170.74,170.63,45.0]
[1721929973819,33.43,170.74,170.64,1.1717209]
[1721929974036,20.0,170.77,170.65,1.17154966]
[1721929974522,20.0,170.77,170.63,46.17148217]
[1721929975518,20.0,170.77,170.63,46.17158228]
[1721929978111,20.0,170.77,170.63,45.0]
[1721929978633,33.43,170.74,170.62,6.3463]
[1721929978929,5.8576,170.72,170.62,6.3463]
[1721929979110,20.0,170.73,170.62,6.3463]
[1721929980029,20.0,170.73,170.57,16.32048415]
[1721929980030,33.43,170.66,170.57,15.1485]
[1721929981014,20.0,170.65,170.56,6.628]
[1721929981508,25.86,170.65,170.56,6.628]
[1721929981710,33.43,170.62,170.51,22.007]
[1721929982230,39.2911,170.62,170.51,6.069]
[1721929982407,33.43,170.58,170.46,22.62074684]
[1721929982607,33.43,170.58,170.46,16.5183]
[1721929983042,33.43,170.58,170.47,1.1729405]
[1721929983332,33.43,170.58,170.46,16.5183]
[1721929983716,33.43,170.58,170.47,1.17294065]
[1721929983918,65.0,170.57,170.45,6.4487]
[1721929984609,20.0,170.57,170.45,6.4487]
[1721929985436,20.0,170.57,170.46,1.17294006]
[1721929985821,20.0,170.57,170.46,45.0]
[1721929987518,6.3004,170.63,170.46,46.17283856]
[1721929987722,45.0,170.62,170.46,46.17283856]
[1721929988743,45.0,170.63,170.46,46.17283856]
[1721929988945,33.43,170.64,170.46,46.17283856]
[1721929989131,45.0,170.63,170.46,46.17283856]
[1721929989645,33.43,170.64,170.46,46.17283856]
[1721929990724,20.0,170.63,170.46,46.17283856]
[1721929991722,20.0,170.63,170.47,15.3459]
[1721929991923,20.0,170.63,170.48,46.17239773]
[1721929992153,20.0,170.63,170.49,1.17239773]
[1721929992943,33.43,170.64,170.49,1.17239773]
[1721929994349,5.861,170.62,170.47,16.51850861]
[1721929994548,5.8613,170.61,170.47,15.3459]
[1721929994748,20.0,170.6,170.47,15.3459]
[1721929994932,25.8613,170.61,170.47,15.3459]
[1721929995452,45.0,170.6,170.47,15.3459]
[1721929995631,50.8617,170.6,170.47,15.3459]
[1721929995832,20.0,170.59,170.47,15.3459]
[1721929996351,20.0,170.61,170.47,15.3459]
[1721929996749,380.5,170.67,170.48,1.17271833]
[1721929996959,5.8596,170.66,170.49,1.1725196]
[1721929997270,5.8601,170.65,170.48,46.17251992]
[1721929997463,5.861,170.62,170.48,45.0]
[1721929997758,33.43,170.63,170.48,45.0]
[1721929997931,33.43,170.63,170.49,1.17258319]
[1721929998134,20.0,170.62,170.49,1.17258319]
[1721929998342,20.0,170.62,170.48,45.0]
[1721929998739,20.0,170.62,170.49,1.17266389]
[1721929999055,20.0,170.62,170.48,45.0]
[1721929999426,20.0,170.62,170.48,46.17265722]
[1721929999759,20.0,170.62,170.48,45.0]
[1721930000544,20.0,170.62,170.48,46.17258264]
[1721930001148,20.0,170.62,170.48,45.0]
[1721930001741,20.0,170.62,170.49,1.17265697]
[1721930001945,20.0,170.62,170.48,45.0]
[1721930004274,25.861,170.62,170.48,45.0]